Cogmind - Beta 15 @@@ ROGUE MODE // 2025.08.20 @ 20:34:37 Player: JuustuToug Result: Destroyed 0b10! Performance ------------- Evolutions (9) 4500 Regions Visited (22) 4400 Robots Destroyed (78) 390 Value Destroyed (2635) 2635 Prototype IDs (68) 1360 Alien Tech Used (7) 1400 Bonus (16008) 16008 TOTAL SCORE: 30693 Bonus ------- Follower Combat Kills 564 Registered with UFD 300 Met Optimus in HQ 500 Met Zhirov 300 Hacked Protovariant 500 Acquired SGEMP 2000 Met Sigix 2000 Delivered SGEMP 2000 Escaped with Sigix 5000 Win 3000 Friendly Fire -156 Cogmind --------- Core Integrity 1122/1600 Matter 300/300 Energy 98/100 System Corruption 6% Temperature Cool (4) Movement Flying (29) Location Tau Ceti IV Orbit Parts ------- > --- POWER (2) -------- (None) > --- PROPULSION (7) --- Impulse Thruster Array Experimental Q-thruster > --- UTILITY (14) ----- Advanced Signal Interpreter Advanced Transmission Jammer Hacking Suite Advanced Hacking Suite Improved System Shield > --- WEAPON (2) ------- (None) > --- INVENTORY (5) ---- ECM Suite Enhanced Nova Cannon Sigix Containment Pod Peak State ------------ > --- POWER ------------ Micro Fission Core Light Quantum Reactor > --- PROPULSION ------- Impulse Thruster Array Impulse Thruster Array Experimental Q-thruster Experimental Q-thruster > --- UTILITY ---------- Advanced Heat Sink Small Storage Unit Advanced Gravity Neutralizer Deep Structural Scanner Spectral Analyzer Advanced Signal Interpreter Advanced Transmission Jammer ECM Suite Cloaking Device Improved Medium Armor Plating Hacking Suite Improved System Shield Advanced System Shield > --- WEAPON ----------- Sigix Terminator > --- INVENTORY -------- Light Quantum Reactor Q-thruster Transdimensional Reconstructor Null Cannon SGEMP Prototype Sigix Containment Pod [Rating: 167] Favorites ----------- Power Micro Fission Core Engine Light Ion Engine Power Core Micro Fission Core Reactor Light Quantum Reactor Propulsion Aluminum Leg Leg Aluminum Leg Wheel Armored Wheel Hover Unit Airjet Flight Unit Improved Cesium-ion Thruster Utility Hacking Suite Device Improved Heat Sink Storage Medium Storage Unit Processor Advanced Signal Interpreter Hackware Hacking Suite Protection Improved Light Armor Plating Artifact Phase Armor Weapon Assault Rifle Energy Gun Heavy Laser Energy Cannon Long-range Proton Cannon Ballistic Gun Assault Rifle Launcher Smartbomb Launcher Special Weapon Stasis Beam Impact Weapon Core Stripper Slashing Weapon Falx Piercing Weapon Heavy Pick Build | -11 -10 -10 -10 -9 -8 -7 -7 -7 -7 -5 -4 -4 -4 -4 -3 -3 -3 -2 -2 -2 -1 -1 ------- Run | Yrd Mat Min Exi Min Mat Fac Sto Rec Scr Fac Fac Upp Upp Zhi Pro Res Tes Res Qua Frg Acc Com Slots Evolved 18 | . . . . . 4 2 . . . 4 2 . . . . 2 . 2 . . 2 . Power 1 | . . . . . . . . . . 1 . . . . . . . . . . . . Propulsion 5 | . . . . . 2 . . . . 1 . . . . . 1 . . . . 1 . Utility 12 | . . . . . 2 2 . . . 2 2 . . . . 1 . 2 . . 1 . Weapon . | . . . . . . . . . . . . . . . . . . . . . . . Parts Attached 152 | 6 2 6 . 3 23 7 13 . 4 16 10 . . 5 1 2 17 8 11 . 11 7 Power 22 | 1 . 1 . 1 3 . 4 . . 3 2 . . . . . 2 1 1 . 3 . Engine 6 | 1 . . . 1 2 . 1 . . 1 . . . . . . . . . . . . Core 10 | . . 1 . . 1 . 3 . . 2 2 . . . . . 1 . . . . . Reactor 6 | . . . . . . . . . . . . . . . . . 1 1 1 . 3 . Propulsion 38 | 2 . 2 . . 7 2 4 . . 5 3 . . 1 1 . 1 2 4 . 3 1 Treads . | . . . . . . . . . . . . . . . . . . . . . . . Leg 8 | 2 . 2 . . 4 . . . . . . . . . . . . . . . . . Wheel 1 | . . . . . 1 . . . . . . . . . . . . . . . . . Hover 3 | . . . . . 1 1 . . . . . . . 1 . . . . . . . . Flight 26 | . . . . . 1 1 4 . . 5 3 . . . 1 . 1 2 4 . 3 1 Utility 57 | 1 1 3 . . 6 3 4 . 3 4 3 . . 4 . 2 8 3 3 . 4 5 Device 20 | . . 2 . . 2 1 . . 1 1 2 . . . . 1 3 2 2 . 2 1 Storage 7 | 1 1 . . . . . . . . . . . . 2 . . 3 . . . . . Processor 5 | . . . . . 2 1 . . . 2 . . . . . . . . . . . . Hackware 10 | . . . . . . . 2 . 1 . 1 . . . . 1 1 1 . . 1 2 Protection 14 | . . 1 . . 2 1 2 . 1 1 . . . 2 . . 1 . . . 1 2 Artifact 1 | . . . . . . . . . . . . . . . . . . . 1 . . . Weapon 35 | 2 1 . . 2 7 2 1 . 1 4 2 . . . . . 6 2 3 . 1 1 Energy Gun 19 | 1 . . . 1 5 1 1 . 1 2 . . . . . . 2 2 1 . 1 1 Energy Cannon 3 | . . . . . . . . . . 1 . . . . . . 2 . . . . . Ballistic Gun 4 | 1 1 . . . 1 1 . . . . . . . . . . . . . . . . Ballistic Cannon . | . . . . . . . . . . . . . . . . . . . . . . . Launcher 3 | . . . . 1 . . . . . . 1 . . . . . . . 1 . . . Special Weapon 1 | . . . . . . . . . . . . . . . . . 1 . . . . . Impact Weapon 2 | . . . . . . . . . . . . . . . . . 1 . 1 . . . Slashing Weapon 2 | . . . . . 1 . . . . . 1 . . . . . . . . . . . Piercing Weapon 1 | . . . . . . . . . . 1 . . . . . . . . . . . . Special Melee Weapon . | . . . . . . . . . . . . . . . . . . . . . . . Unidentified Prototypes 35 | . . . . . 1 3 2 . . 1 1 . . 5 . . 10 3 8 . 1 . Parts Lost 54 | . 1 . . . 16 . 1 . . 2 . . . . 1 4 4 . 10 1 . 14 Power 9 | . . . . . 3 . . . . . . . . . . . 1 . 3 . . 2 Propulsion 19 | . . . . . 7 . . . . 2 . . . . 1 3 . . 1 . . 5 Utility 19 | . . . . . 2 . 1 . . . . . . . . 1 2 . 6 . . 7 Weapon 7 | . 1 . . . 4 . . . . . . . . . . . 1 . . 1 . . Highest Loss Streak 10 | . 1 . . . 8 . 1 . . 1 . . . . 1 4 2 . 6 1 . 10 To Critical Strikes . | . . . . . . . . . . . . . . . . . . . . . . . Average Backups 5 | 2 3 8 10 10 8 4 4 5 5 3 3 4 4 3 3 3 4 5 5 . 3 3 Power . | . 1 1 2 2 . . 1 1 1 . . . . . . . 1 2 1 . . . Propulsion . | . . . 1 1 . . . 1 1 1 1 2 2 1 1 . . . . . 2 . Utility 1 | . 1 3 4 4 3 1 1 1 1 1 . 1 1 . . 2 2 1 1 . . . Weapon 1 | . . 2 3 3 3 2 1 2 1 1 . 1 1 1 1 1 . . 1 . . . Tool/Special . | . . . . . . . . . . . . . . . . . . . . . . . Unused Backups 21 | . . 2 . . 2 2 3 . 2 2 . . . . 1 1 1 1 1 . . 3 Power 5 | . . . . . . . 1 . 1 . . . . . . 1 1 1 . . . . Propulsion 2 | . . . . . 1 . . . . . . . . . . . . . . . . 1 Utility 4 | . . 1 . . . . 2 . 1 . . . . . . . . . . . . . Weapon 7 | . . 1 . . 1 2 . . . 1 . . . . . . . . 1 . . 1 Tool/Special 3 | . . . . . . . . . . 1 . . . . 1 . . . . . . 1 Average Slot Usage (%) 89 | . 85 97 100 100 77 74 97 100 100 93 93 93 94 85 89 88 79 88 89 61 78 77 Engine 2 | . 14 1 . 11 7 6 1 . . 2 . . . . . . . . . . . . Core 6 | . . 12 14 2 . . 5 7 7 8 10 10 10 9 10 9 8 7 3 . . . Leg 7 | . 28 28 28 28 21 . . . . . . . . . . . . . . . . . Flight 15 | . . . . . . 14 28 30 30 22 20 21 21 21 21 22 11 16 20 16 23 20 Device 13 | . . 11 14 14 14 3 10 . 4 10 20 21 21 21 21 19 15 17 20 13 17 14 Storage 4 | . 14 14 14 14 8 . . . . . . . . . . . 2 4 4 4 4 2 Processor 7 | . . . . . . 22 18 15 10 11 10 10 10 10 10 9 9 8 8 8 8 5 Hackware 10 | . . . . . . . 3 15 22 17 15 15 15 15 15 18 19 19 16 13 14 20 Protection 4 | . . . . . 5 6 11 15 7 5 5 5 5 4 5 4 2 3 3 . 1 3 Energy Gun 4 | . 12 . . 12 14 . 6 7 7 1 . . . . . . . 1 2 . 3 3 Energy Cannon 1 | . . . . . . . . . . 3 4 4 5 . . . 1 4 2 1 . . Ballistic Gun 5 | . 15 28 28 15 1 3 6 7 7 3 . . . . . . . . . . . . Peak Build Rating 167 | 6 6 12 12 13 25 41 51 51 54 89 98 98 98 99 101 105 122 146 167 115 160 166 Average Rating 64 | 3 5 10 12 11 18 32 49 51 52 82 92 97 98 88 95 103 103 133 148 104 142 147 On Entrance 66 | . 6 6 12 12 11 14 37 51 51 53 89 98 98 98 93 92 82 110 146 104 100 160 Naked Turns . | . . . . . . . . . . . . . . . . . . . . . . . Heaviest Build 66 | 14 19 22 20 21 32 11 22 20 20 30 32 32 32 32 31 26 43 54 58 36 62 66 Greatest Support 66 | 20 20 20 20 20 30 11 24 24 24 34 34 33 33 33 34 40 45 56 60 36 66 66 Greatest Overweight (x) 7 | 3 . 1 . 1 7 . . . . 1 . . . 3 . . 1 . . . . 3 Average Overweight (x) . | 1 . . . . . . . . . . . . . . . . . . . . . . Largest Inventory Capacity 10 | 8 10 10 10 10 10 5 5 5 5 5 5 5 5 5 5 5 8 8 8 8 8 8 Average Capacity 7 | 7 9 10 10 10 9 5 5 5 5 5 5 5 5 5 5 5 6 8 8 8 8 6 Most Carried 10 | 6 4 10 10 10 10 5 5 5 5 5 5 5 5 5 5 5 8 8 8 7 8 8 Average Carried 6 | 2 3 8 10 10 8 4 4 5 4 4 4 4 5 4 4 4 5 7 7 4 6 6 Final Capacity 10 | 8 10 10 10 10 5 5 5 5 5 5 5 5 5 5 5 5 8 8 8 8 8 5 Final Carried 10 | 2 3 10 10 10 5 5 5 5 5 5 5 5 5 5 4 5 8 8 5 4 8 4 Class Distribution -------------------- 21% | Scavenger-Mutant 16% | Commander-Sprinter 15% | Hacker-Ninja 12% | Hacker-Sprinter 11% | Mutant 10% | Hacker-Mutant 6% | Scout 3% | Hacker-Scout Dominant Class ---------------- Mutant | -10/Materials Scavenger-Mutant | -10/Mines Scavenger-Mutant | -10/Exiles Scavenger-Mutant | -9/Mines Scavenger-Mutant | -8/Materials Scout | -7/Factory Scout | -7/Storage Commander-Sprinter | -7/Recycling Commander-Sprinter | -7/Scraptown Hacker-Sprinter | -5/Factory Hacker-Ninja | -4/Factory Hacker-Ninja | -4/Upper Caves Hacker-Ninja | -4/Upper Caves Hacker-Mutant | -4/Zhirov Hacker-Ninja | -3/Proximity Caves Hacker-Ninja | -3/Research Hacker-Mutant | -3/Testing Hacker-Sprinter | -2/Research Hacker-Sprinter | -2/Quarantine Hacker-Sprinter | -2/Protoforge Hacker-Sprinter | -1/Access Wizard-Mutant | -1/Command Resources | -11 -10 -10 -10 -9 -8 -7 -7 -7 -7 -5 -4 -4 -4 -4 -3 -3 -3 -2 -2 -2 -1 -1 ----------- Run | Yrd Mat Min Exi Min Mat Fac Sto Rec Scr Fac Fac Upp Upp Zhi Pro Res Tes Res Qua Frg Acc Com Matter Collected 3019 | 240 20 176 . 101 305 . 501 12 10 91 205 186 . . 173 35 378 30 248 . 242 66 Remotely . | . . . . . . . . . . . . . . . . . . . . . . . Salvage Created 3063 | . 70 178 . 57 786 53 719 . . 218 274 39 156 . 71 35 169 30 96 3 40 69 Parts 137 | . 3 10 . 11 36 2 30 . . 9 14 1 2 . 1 2 3 1 5 . 3 4 Haulers Intercepted 6 | . . . . . . 1 5 . . . . . . . . . . . . . . . Recyclers Shooed 2 | . . . . . 1 . . . . . . . 1 . . . . . . . . . Parts Field Recycled . | . . . . . . . . . . . . . . . . . . . . . . . Retrieved Matter . | . . . . . . . . . . . . . . . . . . . . . . . Parts Self-Destructed . | . . . . . . . . . . . . . . . . . . . . . . . Prevented . | . . . . . . . . . . . . . . . . . . . . . . . Kills | -11 -10 -10 -10 -9 -8 -7 -7 -7 -7 -5 -4 -4 -4 -4 -3 -3 -3 -2 -2 -2 -1 -1 ------- Run | Yrd Mat Min Exi Min Mat Fac Sto Rec Scr Fac Fac Upp Upp Zhi Pro Res Tes Res Qua Frg Acc Com Combat Hostiles Destroyed 49 | . 1 4 . 7 16 . 4 . . 3 4 . . . 5 . 1 . 2 . 1 1 Melee 1 | . . . . . . . . . . . . . . . . . 1 . . . . . Guns 24 | . 1 4 . 1 10 . 4 . . 2 . . . . . . . . . . 1 1 Cannons 4 | . . . . . . . . . . 1 1 . . . . . . . 2 . . . AOE 20 | . . . . 6 6 . . . . . 3 . . . 5 . . . . . . . Classes Destroyed 13 | . 2 . . 1 4 1 2 . . . . . . . . . 1 1 1 . . . Worker 5 | . . . . . 4 . 1 . . . . . . . . . . . . . . . Hauler 6 | . . . . . . 1 5 . . . . . . . . . . . . . . . Recycler 5 | . . . . . 1 . 2 . . . 1 . . . . . 1 . . . . . Mechanic 1 | . . . . . . . . . . . . . . . . . . 1 . . . . Operator 2 | . . . . . . . 1 . . . 1 . . . . . . . . . . . Watcher 9 | . 1 . . . 3 . 1 . . 1 . . . . . 1 1 . . 1 . . Swarmer 20 | . . . . 7 3 . . . . 1 3 . . . 5 . . . . . 1 . Grunt 18 | . 1 4 . . 10 . 2 . . 1 . . . . . . . . . . . . Duelist 1 | . . . . . . . 1 . . . . . . . . . . . . . . . Researcher 1 | . . . . . . . . . . . . . . . . . . . 1 . . . Sentry 5 | . . . . . 2 . 1 . . 1 1 . . . . . . . . . . . Hunter 1 | . . . . . 1 . . . . . . . . . . . . . . . . . Programmer 4 | . . . . . . . . . . . . . . . . . 1 . 2 . . 1 Decomposer 2 | . . . . . . . . . . . . 2 . . . . . . . . . . Packrat 2 | . . . . . . . . . . . . . 2 . . . . . . . . . Best Kill Streak 6 | . 1 2 . 4 6 1 5 . . 1 3 . . . 5 1 1 1 2 1 1 1 Combat Bots Only 5 | . 1 2 . 4 4 . 2 . . 1 3 . . . 5 . 1 . 2 . 1 1 Max Kills in Single Turn 3 | . 1 1 . 3 3 1 1 . . 1 3 1 1 . 3 1 1 1 1 1 1 1 Gunslinging . | . . . . . . . . . . . . . . . . . . . . . . . Exploded 3 | . . . . 3 2 . . . . . 3 . . . 3 . . . . . . . Melee 1 | . . . . . . . . . . . . . . . . . 1 . . . . . Uniques/NPCs Destroyed 1 | . . . . . . . 1 . . . . . . . . . . . . . . . 01-MTF (-7/Storage) Combat | -11 -10 -10 -10 -9 -8 -7 -7 -7 -7 -5 -4 -4 -4 -4 -3 -3 -3 -2 -2 -2 -1 -1 -------- Run | Yrd Mat Min Exi Min Mat Fac Sto Rec Scr Fac Fac Upp Upp Zhi Pro Res Tes Res Qua Frg Acc Com Hostile Shots Fired 824 | . 18 22 . 19 167 . 37 9 . 43 33 2 . . 21 25 39 22 76 53 20 218 Missed 350 | . 5 10 . 5 52 . 21 8 . 20 19 1 . . 7 10 19 13 28 31 12 89 Hits 474 | . 13 12 . 14 115 . 16 1 . 23 14 1 . . 14 15 20 9 48 22 8 129 Melee 6 | . . . . . . . . . . . . . . . . . . . 4 . . 2 Projectile 468 | . 13 12 . 14 115 . 16 1 . 23 14 1 . . 14 15 20 9 44 22 8 127 Critical Strikes 18 | . . . . . 7 . . . . 1 2 . . . . . 1 . 1 2 . 4 Part Disruptions 2 | . . . . . . . . . . . 2 . . . . . . . . . . . Damage Taken 8993 | . 141 145 . 113 1830 . 251 5 . 461 278 16 . . 258 336 538 204 1086 515 206 2610 Core 1674 | . 23 11 . 28 502 . 50 5 . 51 19 16 . . 23 18 34 19 162 235 . 478 Absorbed by Shields 322 | . . . . . . . . . . . . . . . . . . . . 12 . 310 Ignored by Resistances 14 | . . . . . . . . . . . . . . . . . . . . . 14 . Regen/Repaired (Parts) 485 | . . . . . . 14 . . . . 85 . . . . . . 253 . 133 . . Core Remaining (%) 75 | 100 . . . 75 8 . . . 92 94 . . . . 94 . 96 . . 49 . 70 Volleys Fired 282 | . 10 12 . 4 70 4 43 2 . 24 6 2 . . 8 . 24 7 27 4 13 22 Largest 2 | . 2 2 . 2 2 1 2 2 . 2 1 1 . . 1 . 1 1 1 1 1 1 Hottest 138 | . 60 40 . 95 138 28 97 97 . 109 81 46 . . 46 . 130 130 130 130 65 65 Shots Fired 432 | . 20 24 . 6 132 4 82 4 . 45 7 2 1 . 8 . 24 7 27 4 13 22 Gun 341 | . 20 24 . 2 126 4 82 4 . 36 . . . . . . 6 1 1 . 13 22 Cannon 67 | . . . . . . . . . . 9 6 . 1 . . . 18 4 25 4 . . Launcher 22 | . . . . 4 6 . . . . . 1 2 . . 8 . . . 1 . . . Special 2 | . . . . . . . . . . . . . . . . . . 2 . . . . Kinetic 104 | . 10 24 . . . 4 43 2 . 21 . . . . . . . . . . . . Thermal 226 | . . . . 2 107 . 39 2 . . . . . . . . 18 5 27 4 . 22 Explosive 21 | . . . . 4 6 . . . . . 1 2 . . 8 . . . . . . . Electromagnetic 79 | . 10 . . . 19 . . . . 24 6 . 1 . . . 6 . . . 13 . Robot Hit Streak 18 | . 5 5 . 1 13 3 18 7 . 9 4 . . . 2 . 6 8 5 7 9 4 Robot Miss Streak 5 | . 3 3 . 1 5 . 3 . . 2 1 . . . . . 2 2 1 . 2 4 Penetration Max . | . . . . . . . . . . . . . . . . . . . . . . . Secondary Targets 1 | . . . . . . . . . . 1 . . . . . . . . . . . . Max Gunslinging Chain 1 | . . . . . . . . . . 1 . . . . . . . . . . . . Shots Hit Robots 246 | . 11 16 . 3 71 2 54 4 . 26 10 2 3 . 1 3 10 2 8 2 7 11 Core Hits 135 | . 3 9 . 8 46 1 26 2 . 9 7 . 2 . 6 1 3 2 3 1 4 2 Critical Kills . | . . . . . . . . . . . . . . . . . . . . . . . Critical Parts Destroyed . | . . . . . . . . . . . . . . . . . . . . . . . Critical Strikes 6 | . . . . . 3 . 1 . . . 1 . . . . 1 . . . . . . Burn 3 | . . . . . 2 . 1 . . . . . . . . . . . . . . . Corrupt 1 | . . . . . 1 . . . . . . . . . . . . . . . . . Sever 2 | . . . . . . . . . . . 1 . . . . 1 . . . . . . Melee Attacks 57 | . . . . . 3 1 8 . . 7 7 3 4 . 2 6 16 . . . . . Impact . | . . . . . . . . . . . . . . . . . . . . . . . Slashing 49 | . . . . . 3 1 8 . . . 6 3 4 . 2 6 16 . . . . . Piercing 8 | . . . . . . . . . . 7 1 . . . . . . . . . . . Sneak Attacks 7 | . . . . . . . . . . . 1 2 2 . . 1 1 . . . . . Combat Hostiles . | . . . . . . . . . . . . . . . . . . . . . . . Follow-up Attacks . | . . . . . . . . . . . . . . . . . . . . . . . Damage Inflicted 9498 | . 163 215 . 256 2125 43 1094 81 . 523 878 173 230 . 805 190 547 164 1232 180 156 443 Guns 3965 | . 163 215 . 18 1355 43 1094 81 . 382 . . . . . . 15 . . . 156 443 Cannons 1485 | . . . . . . . . . . 86 151 . . . . . 233 . 835 180 . . Explosions 2836 | . . . . 238 766 . . . . . 375 . . . 805 . 91 164 397 . . . Melee 1208 | . . . . . . . . . . 55 352 173 230 . . 190 208 . . . . . Ramming 4 | . . . . . 4 . . . . . . . . . . . . . . . . . Kinetic 1252 | . 65 215 . . . 43 605 42 . 282 . . . . . . . . . . . . Thermal 3944 | . . . . 18 1219 . 489 39 . . . . . . . . 324 . 1232 180 . 443 Explosive 2231 | . . . . 238 649 . . . . . 375 . . . 805 . . 164 . . . . Electromagnetic 859 | . 98 . . . 253 . . . . 186 151 . . . . . 15 . . . 156 . Impact . | . . . . . . . . . . . . . . . . . . . . . . . Slashing 1153 | . . . . . . . . . . . 352 173 230 . . 190 208 . . . . . Piercing 55 | . . . . . . . . . . 55 . . . . . . . . . . . . Highest Corruption 6 | . . . . . 1 . . . . 3 5 5 5 5 5 2 4 . 1 1 . 6 Average Corruption 3 | . . . . . 1 . . . . 2 4 5 5 5 5 1 2 . 1 1 . 5 Corruption Purged . | . . . . . . . . . . . . . . . . . . . . . . . Corruption Blocked . | . . . . . . . . . . . . . . . . . . . . . . . Effects 41 | . . . . . 1 . . . . . 8 4 7 4 4 . 9 . 1 . . 3 Message Errors 8 | . . . . . 1 . . . . . 2 1 1 . 1 . 1 . . . . 1 Matter Fused 8 | . . . . . . . . . . . 2 . 1 2 1 . 1 . . . . 1 Heat Flow Errors 7 | . . . . . . . . . . . 1 1 1 . 1 . 3 . . . . . Energy Discharges 9 | . . . . . . . . . . . 2 1 2 1 1 . 2 . . . . . Parts Rejected 1 | . . . . . . . . . . . . . . . . . . . 1 . . . Data Loss (minor) 5 | . . . . . . . . . . . . 1 1 1 . . 1 . . . . 1 Misfires 2 | . . . . . . . . . . . 1 . 1 . . . . . . . . . Alerts 1 | . . . . . . . . . . . . . . . . . 1 . . . . . Overload Shots 2 | . . . . . . . . . . . . . . . . . . 1 1 . . . Overflow Damage 948 | . . . . 27 37 . . . . . 144 150 73 . 93 23 82 35 246 38 . . Projectiles 354 | . . . . . . . . . . . 7 . . . . . 63 . 246 38 . . Explosions 215 | . . . . 27 37 . . . . . 23 . . . 93 . . 35 . . . . Melee 379 | . . . . . . . . . . . 114 150 73 . . 23 19 . . . . . Knockbacks . | . . . . . . . . . . . . . . . . . . . . . . . Impact . | . . . . . . . . . . . . . . . . . . . . . . . Kinetic . | . . . . . . . . . . . . . . . . . . . . . . . Secondary . | . . . . . . . . . . . . . . . . . . . . . . . Self-Inflicted Damage 136 | . . . . . 56 . . . . . . . . . 4 . 76 . . . . . Shots 6 | . . . . . 4 . . . . . . . . . 1 . 1 . . . . . Rammed 1 | . . . . . 1 . . . . . . . . . . . . . . . . . Targets Rammed 1 | . . . . . 1 . . . . . . . . . . . . . . . . . Kicked . | . . . . . . . . . . . . . . . . . . . . . . . Crushed . | . . . . . . . . . . . . . . . . . . . . . . . Highest Temperature 436 | . 30 2 . . 329 286 436 102 3 307 113 202 152 . 216 11 270 84 111 11 255 309 Average Temperature 83 | . 21 2 . . 79 142 98 74 1 73 34 101 76 . 120 5 112 29 28 8 54 133 Received Heat Transfer 1690 | . 78 81 . . 981 . 84 . . 117 9 . . . 30 21 27 18 45 45 9 145 Effects 13 | . . . . . . . 6 . . . . . . . . . 2 . . . . 5 Shutdowns 1 | . . . . . . . 1 . . . . . . . . . . . . . . . Energy Bleed 5 | . . . . . . . 1 . . . . . . . . . 2 . . . . 2 Interference 3 | . . . . . . . . . . . . . . . . . . . . . . 3 Damage (major) 4 | . . . . . . . 4 . . . . . . . . . . . . . . . Siege Activations . | . . . . . . . . . . . . . . . . . . . . . . . Martial Activations . | . . . . . . . . . . . . . . . . . . . . . . . Shielding Activations . | . . . . . . . . . . . . . . . . . . . . . . . Robots Disrupted . | . . . . . . . . . . . . . . . . . . . . . . . Combat Hostiles . | . . . . . . . . . . . . . . . . . . . . . . . Robots Corrupted 1 | . . . . . 1 . . . . . . . . . . . . . . . . . Combat Hostiles . | . . . . . . . . . . . . . . . . . . . . . . . Parts Fried 7 | . . . . . 2 . 2 . . 1 2 . . . . . . . . . . . Impact Corruptions . | . . . . . . . . . . . . . . . . . . . . . . . Robots Melted . | . . . . . . . . . . . . . . . . . . . . . . . Combat Hostiles . | . . . . . . . . . . . . . . . . . . . . . . . Parts Melted 3 | . . . . . 3 . . . . . . . . . . . . . . . . . Heat Transferred 4795 | . . . . 37 2494 . 1073 74 . . . . . . . . 150 . 460 100 . 407 Parts Sabotaged . | . . . . . . . . . . . . . . . . . . . . . . . Parts Stolen . | . . . . . . . . . . . . . . . . . . . . . . . Parts Stripped . | . . . . . . . . . . . . . . . . . . . . . . . Power Chain Reactions 2 | . . . . . 1 . . . . . . . . . . . 1 . . . . . Alert | -11 -10 -10 -10 -9 -8 -7 -7 -7 -7 -5 -4 -4 -4 -4 -3 -3 -3 -2 -2 -2 -1 -1 ------- Run | Yrd Mat Min Exi Min Mat Fac Sto Rec Scr Fac Fac Upp Upp Zhi Pro Res Tes Res Qua Frg Acc Com Maximum Alert Level 2 | . . . . . . . 1 . . . . . . . . . . 1 2 1 2 1 Low Security (%) 89 | 100 100 100 . 100 100 100 98 100 . 100 100 . . . . 100 100 93 60 . 24 . Level 1 9 | . . . . . . . 1 . . . . . . . . . . 6 33 100 64 100 Level 2 . | . . . . . . . . . . . . . . . . . . . 6 . 10 . Level 3 . | . . . . . . . . . . . . . . . . . . . . . . . Level 4 . | . . . . . . . . . . . . . . . . . . . . . . . Level 5 . | . . . . . . . . . . . . . . . . . . . . . . . High Security . | . . . . . . . . . . . . . . . . . . . . . . . Max Security . | . . . . . . . . . . . . . . . . . . . . . . . Peak Influence 532 | . 26 50 . 99 159 54 204 93 . 189 112 . . . . 54 68 227 532 378 415 275 Initial 265 | . . . . . 1 40 5 73 . . 92 . . . . 54 . 9 121 265 158 257 Average 66 | . 7 8 . 41 60 34 72 19 . 46 36 . . . . 25 18 62 189 275 285 246 Influence Increases 4395 | . 77 100 . 208 530 82 477 30 . 509 157 . . . 110 41 297 337 631 239 355 215 Destroy 0b10 Robot/C 1300 | . 20 80 . 140 320 . 140 20 . 120 80 . . . 100 . 20 . 60 . 180 20 Destroy 0b10 Robot/NC 145 | . 5 . . . 40 5 55 . . 5 10 . . . . 5 10 5 . 5 . . Destroy Leader 282 | . 2 20 . 20 56 2 64 . . 22 20 . . . 10 2 12 . 10 2 30 10 Allied During Kill 186 | . . . . . . . 66 10 . 32 . . . . . . . . . . 78 . Successful Hack 503 | . 20 . . . 7 59 24 . . 18 13 . . . . . 68 26 90 106 22 50 Disable Machine 285 | . 30 . . . 15 15 45 . . . 15 . . . . . 75 15 75 . . . Destroy Structure 539 | . . . . 18 32 1 8 . . 12 4 . . . . 4 52 51 306 6 45 . Partial Spotted 330 | . . . . . . . 15 . . 30 15 . . . . 30 30 15 15 120 . 60 Lose Combat Pursuer 825 | . . . . 30 60 . 60 . . 270 . . . . . . 30 225 75 . . 75 Influence Decreases 4183 | . 77 100 . 202 446 160 301 218 . 320 346 . . . 30 121 279 138 376 447 216 406 Entered New Map 864 | . . . . . 5 50 7 115 . . 97 . . . . 26 . 9 96 207 106 146 Time Decay 2426 | . 67 100 . 202 281 110 239 103 . 200 188 . . . 20 78 239 129 180 80 100 110 Lost Part 497 | . 10 . . . 160 . 10 . . . . . . . 10 17 40 . 100 10 . 140 Lost Ally 180 | . . . . . . . 40 . . 120 . . . . . . . . . . 10 10 Purge Threat 216 | . . . . . . . 5 . . . 61 . . . . . . . . 150 . . Squads Dispatched 48 | . . . . . 3 . 3 . . 11 5 . . . . 2 8 2 3 3 4 4 Investigation 18 | . . . . . 1 . 1 . . 9 3 . . . . . . 1 . 1 2 . Extermination 15 | . . . . . . . 1 . . 1 2 . . . . 1 3 1 2 1 1 2 Reinforcement 12 | . . . . . 1 . 1 . . . . . . . . 1 4 . 1 1 1 2 Assault 1 | . . . . . . . . . . . . . . . . . 1 . . . . . Garrison 2 | . . . . . 1 . . . . 1 . . . . . . . . . . . . Intercept . | . . . . . . . . . . . . . . . . . . . . . . . Searches Triggered . | . . . . . . . . . . . . . . . . . . . . . . . Construction Impeded 1 | . . . . . 1 . . . . . . . . . . . . . . . . . Haulers Reinforced 1 | . . . . . . . . . . . . . . . . . . . . . 1 . Active Scanning Responses . | . . . . . . . . . . . . . . . . . . . . . . . Cargo Convoy Interrupts . | . . . . . . . . . . . . . . . . . . . . . . . Stealth | -11 -10 -10 -10 -9 -8 -7 -7 -7 -7 -5 -4 -4 -4 -4 -3 -3 -3 -2 -2 -2 -1 -1 --------- Run | Yrd Mat Min Exi Min Mat Fac Sto Rec Scr Fac Fac Upp Upp Zhi Pro Res Tes Res Qua Frg Acc Com Distress Signals 11 | . 1 . . . 1 . 2 . . 1 1 . . . . . . 1 . 1 . 3 Communications Jammed 32 | . . . . . . . . . . . . . . . . . 14 2 3 12 . 1 Distress Signals 32 | . . . . . . . . . . . . . . . . . 14 2 3 12 . 1 Times Spotted 283 | . 6 4 . 9 35 . 22 1 . 33 12 8 . . 7 14 14 21 18 23 25 31 Peak Tracking Total 21 | . 3 2 . 4 8 . 5 1 . 10 7 9 . . 4 10 6 9 5 12 13 21 Tactical Retreats 38 | . . . . 1 2 . 1 . . 7 3 2 . . 1 2 2 5 3 3 2 4 Traps | -11 -10 -10 -10 -9 -8 -7 -7 -7 -7 -5 -4 -4 -4 -4 -3 -3 -3 -2 -2 -2 -1 -1 ------- Run | Yrd Mat Min Exi Min Mat Fac Sto Rec Scr Fac Fac Upp Upp Zhi Pro Res Tes Res Qua Frg Acc Com Traps Triggered 17 | . . . . . . . . . . 3 . . . . . . 1 1 1 1 . 10 Indirectly . | . . . . . . . . . . . . . . . . . . . . . . . Trap Hack Attempts . | . . . . . . . . . . . . . . . . . . . . . . . Triggered . | . . . . . . . . . . . . . . . . . . . . . . . Disarmed 6 | . . . . . . . . . . . . . . . . . . . . 6 . . Reprogrammed . | . . . . . . . . . . . . . . . . . . . . . . . Reused . | . . . . . . . . . . . . . . . . . . . . . . . Traps Extracted . | . . . . . . . . . . . . . . . . . . . . . . . Installed . | . . . . . . . . . . . . . . . . . . . . . . . Triggered . | . . . . . . . . . . . . . . . . . . . . . . . Machines | -11 -10 -10 -10 -9 -8 -7 -7 -7 -7 -5 -4 -4 -4 -4 -3 -3 -3 -2 -2 -2 -1 -1 ---------- Run | Yrd Mat Min Exi Min Mat Fac Sto Rec Scr Fac Fac Upp Upp Zhi Pro Res Tes Res Qua Frg Acc Com Machines Disabled 21 | . 2 . . . 1 1 3 . . . 1 . . . . . 6 1 6 . . . Max in Single Turn 1 | . 1 . . . 1 1 1 . . . 1 . . . . . 1 1 1 . . . Garrison Access 8 | . . . . . 1 . . . . 2 . . . . . . 1 2 1 . 1 . Machines Repaired . | . . . . . . . . . . . . . . . . . . . . . . . Machines Dismantled . | . . . . . . . . . . . . . . . . . . . . . . . Machines Sabotaged . | . . . . . . . . . . . . . . . . . . . . . . . Overloaded Fab Kills . | . . . . . . . . . . . . . . . . . . . . . . . Hacking | -11 -10 -10 -10 -9 -8 -7 -7 -7 -7 -5 -4 -4 -4 -4 -3 -3 -3 -2 -2 -2 -1 -1 --------- Run | Yrd Mat Min Exi Min Mat Fac Sto Rec Scr Fac Fac Upp Upp Zhi Pro Res Tes Res Qua Frg Acc Com Machines Accessed 129 | . 3 1 . . 6 7 11 6 3 20 7 2 1 6 1 3 8 6 11 10 9 8 Terminals 76 | . 3 1 . . 5 3 8 2 . 10 2 1 . . 1 1 5 2 10 8 7 7 Fabricators 3 | . . . . . . 1 . . . . 1 . . . . 1 . . . . . . Repair Stations 6 | . . . . . . 1 1 . . . 1 . . . . . 1 1 . 1 . . Recycling Units 17 | . . . . . . 1 1 3 . 7 2 . . . . . . 1 . . 1 1 Scanalyzers 4 | . . . . . . 1 . . . . 1 . . . . . 1 . . 1 . . Garrison Access 11 | . . . . . 1 . 1 . . 3 . . . . . 1 1 2 1 . 1 . Total Hacks 408 | . 5 1 . . 14 16 20 8 26 51 28 9 1 19 8 10 28 18 38 54 28 26 Successful 224 | . 3 1 . . 5 9 7 6 26 21 20 9 1 19 8 2 16 10 18 19 12 12 Failed 184 | . 2 . . . 9 7 13 2 . 30 8 . . . . 8 12 8 20 35 16 14 Catastrophic 38 | . . . . . 2 3 5 1 . 6 1 . . . . 2 3 . 4 5 2 4 Database Lockouts . | . . . . . . . . . . . . . . . . . . . . . . . Manual 121 | . 3 6 . . 8 3 3 . . 34 9 . . . . . 14 3 4 15 5 14 Terminals 265 | . 5 1 . . 12 8 15 2 . 34 9 8 . . 8 2 22 6 36 49 23 25 Fabricators 9 | . . . . . . 2 . . . . 2 . . . . 5 . . . . . . Repair Stations 16 | . . . . . . 2 1 . . . 5 . . . . . 1 5 . 2 . . Recycling Units 39 | . . . . . . 3 2 5 . 12 9 . . . . . . 5 . . 2 1 Scanalyzers 11 | . . . . . . 1 . . . . 3 . . . . . 4 . . 3 . . Garrison Access 20 | . . . . . 2 . 2 . . 5 . . . . . 3 1 2 2 . 3 . Terminal Hacks 155 | . 2 1 . . 4 2 5 2 26 8 6 9 1 19 8 . 9 2 17 16 9 9 Record 55 | . . . . . . . . 1 20 . . 8 . 7 8 . 1 . 5 1 2 2 Part Schematic 4 | . . . . . . . . . . . . . . 4 . . . . . . . . Robot Analysis 12 | . . . . . . . 1 . 6 . . . . 4 . . . . . . 1 . Prototype ID Bank 8 | . . . . . . . 1 . . 1 . . . 4 . . 1 . 1 . . . Open Door 9 | . . . . . . . 1 . . . . 1 1 . . . . 1 2 . 3 . Level Access Points 3 | . . . . . . 1 . . . . . . . . . . . . . 1 . 1 Branch Access Points 6 | . 1 . . . . . . . . . 1 . . . . . . . 2 1 . 1 Terminal Index 7 | . . . . . . . . . . 1 1 . . . . . 1 1 1 1 . 1 Recycling Unit Index 1 | . . . . . . . . . . . 1 . . . . . . . . . . . Alert Level 9 | . 1 . . . . . 1 . . 1 . . . . . . 1 . 1 2 1 1 Unreport Threat 3 | . . . . . . . 1 . . . 1 . . . . . . . . 1 . . Locate Traps 8 | . . . . . 1 1 . . . 1 1 . . . . . . . . 3 . 1 Disarm Traps 1 | . . . . . . . . . . . . . . . . . . . . 1 . . Security Status 1 | . . . . . . . . . . . . . . . . . . . . 1 . . Surveillance Status 1 | . . . . . . . . . . . . . . . . . . . . . 1 . Patrol Status 1 | . . . . . . . . . . . . . . . . . . . . . 1 . Recall Investigation 2 | . . . . . . . . . . 2 . . . . . . . . . . . . Recall Extermination 2 | . . . . . . . . . . 1 1 . . . . . . . . . . . Recall Reinforcements 3 | . . . . . 1 . . . . . . . . . . . 1 . 1 . . . Registered Components 1 | . . . . . 1 . . . . . . . . . . . . . . . . . Registered Prototypes 2 | . . . . . . . . . . . . . . . . . 1 . 1 . . . Zone Layout 14 | . . 1 . . 1 . . 1 . 1 . . . . . . 2 . 3 4 . 1 Protovariant Controls 1 | . . . . . . . . . . . . . . . . . 1 . . . . . Disengage Seal 1 | . . . . . . . . . . . . . . . . . . . . . . 1 Fabricator Hacks 4 | . . . . . . 1 . . . . 1 . . . . 2 . . . . . . Network Status 3 | . . . . . . 1 . . . . 1 . . . . 1 . . . . . . Load Schematic 1 | . . . . . . . . . . . . . . . . 1 . . . . . . Repair Station Hacks 12 | . . . . . . 2 . . . . 4 . . . . . . 4 . 2 . . Scan Component 6 | . . . . . . 1 . . . . 2 . . . . . . 2 . 1 . . Repair 6 | . . . . . . 1 . . . . 2 . . . . . . 2 . 1 . . Recycling Unit Hacks 18 | . . . . . . 3 2 4 . 2 5 . . . . . . 1 . . . 1 Process 3 | . . . . . . 1 . . . 1 1 . . . . . . . . . . . Report Inventory 10 | . . . . . . 1 1 3 . 1 2 . . . . . . 1 . . . 1 Retrieve Matter 4 | . . . . . . 1 1 . . . 2 . . . . . . . . . . . Retrieve Components 1 | . . . . . . . . 1 . . . . . . . . . . . . . . Scanalyzer 6 | . . . . . . 1 . . . . 1 . . . . . 4 . . . . . Insert Component 4 | . . . . . . 1 . . . . 1 . . . . . 2 . . . . . Analyze 2 | . . . . . . . . . . . . . . . . . 2 . . . . . Garrison Access Hacks 8 | . . . . . 1 . . . . 2 . . . . . . 1 2 1 . 1 . Seal Access 8 | . . . . . 1 . . . . 2 . . . . . . 1 2 1 . 1 . Unauthorized Hacks 21 | . 1 . . . . . . . . 9 3 . . . . . 2 1 . 1 2 2 Terminals 8 | . 1 . . . . . . . . 2 . . . . . . 2 . . . 1 2 Assimilate 4 | . . . . . . . . . . . . . . . . . 1 . . . 1 2 Botnet 4 | . 1 . . . . . . . . 2 . . . . . . 1 . . . . . Fabricators 1 | . . . . . . . . . . . 1 . . . . . . . . . . . Report 1 | . . . . . . . . . . . 1 . . . . . . . . . . . Repair Stations . | . . . . . . . . . . . . . . . . . . . . . . . Recycling Units 11 | . . . . . . . . . . 7 2 . . . . . . 1 . . 1 . Fedlink 11 | . . . . . . . . . . 7 2 . . . . . . 1 . . 1 . Scanalyzers 1 | . . . . . . . . . . . . . . . . . . . . 1 . . Researchers 1 | . . . . . . . . . . . . . . . . . . . . 1 . . Garrison Access . | . . . . . . . . . . . . . . . . . . . . . . . Data Cores Recovered 1 | . . . . . . . . . . . 1 . . . . . . . . . . . Used 1 | . . . . . . . . . . . 1 . . . . . . . . . . . Hacking Detections 87 | . 3 1 . . 6 7 9 2 . 14 6 . . . . 2 6 3 7 9 6 6 Full Trace Events 6 | . . . . . 1 . 1 . . 1 1 . . . . . . . . 1 1 . Feedback Events . | . . . . . . . . . . . . . . . . . . . . . . . Feedback Blocked . | . . . . . . . . . . . . . . . . . . . . . . . Robot Schematics Acquired 3 | . . . . . . . . . . . . . . . . . 1 . 2 . . . Robots Built . | . . . . . . . . . . . . . . . . . . . . . . . Authchips . | . . . . . . . . . . . . . . . . . . . . . . . Time . | . . . . . . . . . . . . . . . . . . . . . . . Total Robot Build Rating . | . . . . . . . . . . . . . . . . . . . . . . . Part Schematics Acquired 19 | . . . . . . . . . . . . . . 4 . . 13 . 2 . . . Parts Built . | . . . . . . . . . . . . . . . . . . . . . . . Authchips . | . . . . . . . . . . . . . . . . . . . . . . . Time . | . . . . . . . . . . . . . . . . . . . . . . . Total Part Build Rating . | . . . . . . . . . . . . . . . . . . . . . . . Parts Repaired 6 | . . . . . . 1 . . . . 2 . . . . . . 2 . 1 . . Time 244 | . . . . . . 26 . . . . 134 . . . . . . 50 . 34 . . Parts Recycled . | . . . . . . . . . . . . . . . . . . . . . . . Recycled Matter 81 | . . . . . . 14 . . . . 67 . . . . . . . . . . . Retrieved Matter 81 | . . . . . . 14 . . . . 67 . . . . . . . . . . . Retrieved Components 3 | . . . . . . . . 3 . . . . . . . . . . . . . . Parts Scanalyzed 3 | . . . . . . . . . . . 1 . . . . . 2 . . . . . Part Schematics Acquired 2 | . . . . . . . . . . . . . . . . . 2 . . . . . Parts Damaged 1 | . . . . . . . . . . . 1 . . . . . . . . . . . Bothacking | -11 -10 -10 -10 -9 -8 -7 -7 -7 -7 -5 -4 -4 -4 -4 -3 -3 -3 -2 -2 -2 -1 -1 ------------ Run | Yrd Mat Min Exi Min Mat Fac Sto Rec Scr Fac Fac Upp Upp Zhi Pro Res Tes Res Qua Frg Acc Com Used RIF Installer . | . . . . . . . . . . . . . . . . . . . . . . . Robots Hacked . | . . . . . . . . . . . . . . . . . . . . . . . Non-combat . | . . . . . . . . . . . . . . . . . . . . . . . Combat . | . . . . . . . . . . . . . . . . . . . . . . . Robot Hacks Applied . | . . . . . . . . . . . . . . . . . . . . . . . Relay Couplers Released 2 | . . . . . 2 . . . . . . . . . . . . . . . . . Machine Destruction 2 | . . . . . 2 . . . . . . . . . . . . . . . . . Fabnet Peak Effective % . | . . . . . . . . . . . . . . . . . . . . . . . Robots Rewired . | . . . . . . . . . . . . . . . . . . . . . . . Allies Hacked . | . . . . . . . . . . . . . . . . . . . . . . . Hacks Repelled . | . . . . . . . . . . . . . . . . . . . . . . . Allies | -11 -10 -10 -10 -9 -8 -7 -7 -7 -7 -5 -4 -4 -4 -4 -3 -3 -3 -2 -2 -2 -1 -1 -------- Run | Yrd Mat Min Exi Min Mat Fac Sto Rec Scr Fac Fac Upp Upp Zhi Pro Res Tes Res Qua Frg Acc Com Total Allies 15 | . . . . . . . 10 . . . . . . . . . . . . . 4 1 Largest Group 10 | . . . . . . . 10 7 7 7 . . . . . . . . . . 4 1 Highest-Rated Group 384 | . . . . . . . 173 125 125 125 . . . . . . . . . . 384 26 Highest-Rated Ally 135 | . . . . . . . 29 29 29 29 . . . . . . . . . . 135 26 Total Orders . | . . . . . . . . . . . . . . . . . . . . . . . Ally Attacks 113 | . . . . . . . 33 8 . 50 . . . . . . . . . . 22 . Total Damage 2051 | . . . . . . . 445 106 . 413 . . . . . . . . . . 1087 . Kills 18 | . . . . . . . 5 1 . 4 . . . . . . . . . . 8 . Allies Corrupted . | . . . . . . . . . . . . . . . . . . . . . . . Allies Melted . | . . . . . . . . . . . . . . . . . . . . . . . Intel | -11 -10 -10 -10 -9 -8 -7 -7 -7 -7 -5 -4 -4 -4 -4 -3 -3 -3 -2 -2 -2 -1 -1 ------- Run | Yrd Mat Min Exi Min Mat Fac Sto Rec Scr Fac Fac Upp Upp Zhi Pro Res Tes Res Qua Frg Acc Com Active Infowar (turns) 6769 | . . . . . 805 230 554 561 676 533 651 193 154 172 152 225 600 272 373 173 210 235 Optics 5446 | . . . . . 51 230 554 561 258 533 651 193 154 172 152 225 600 272 373 173 210 84 Sensors 3178 | . . . . . 754 118 400 . . . 646 193 154 172 152 225 156 66 142 . . . Structural 3716 | . . . . . . . . . 418 533 646 193 154 172 152 225 600 264 359 . . . Cloaking 556 | . . . . . . . . . . . . . . . . . . 221 335 . . . Jamming 1845 | . . . . . . . . . . . . . . . . 188 600 239 200 173 210 235 ECM 2317 | . . . . . . . . . . . 646 193 154 171 152 225 152 . 76 173 210 165 Robot Analysis Total 12 | . . . . . . . 1 . 6 . . . . 4 . . . . . . 1 . Derelict Logs Recovered 6 | . . 2 . 1 . . . . . . . 2 1 . . . . . . . . . Drone Launches . | . . . . . . . . . . . . . . . . . . . . . . . Drone Recoveries . | . . . . . . . . . . . . . . . . . . . . . . . Exploration | -11 -10 -10 -10 -9 -8 -7 -7 -7 -7 -5 -4 -4 -4 -4 -3 -3 -3 -2 -2 -2 -1 -1 ------------- Run | Yrd Mat Min Exi Min Mat Fac Sto Rec Scr Fac Fac Upp Upp Zhi Pro Res Tes Res Qua Frg Acc Com Turns Passed 8769 | 76 213 537 386 460 1129 230 554 561 676 533 651 193 154 172 152 225 600 272 373 173 210 239 Spaces Moved 13140 | 43 145 382 322 358 569 499 542 352 1821 1144 1057 562 457 165 366 385 963 516 869 529 504 590 Core 77 | 23 . . . . 53 . . . . . . . . . . . . . . . . 1 Treads . | . . . . . . . . . . . . . . . . . . . . . . . Legs 1581 | 20 145 382 322 358 354 . . . . . . . . . . . . . . . . . Wheels 123 | . . . . . 123 . . . . . . . . . . . . . . . . . Hover 12 | . . . . . 12 . . . . . . . . . . . . . . . . . Flight 11347 | . . . . . 27 499 542 352 1821 1144 1057 562 457 165 366 385 963 516 869 529 504 589 Fastest Speed 18 | 50 120 120 120 120 35 34 27 27 27 27 31 31 31 31 29 29 29 23 18 22 19 19 Average Speed 42 | 145 120 121 120 121 129 34 27 27 27 31 33 31 31 86 29 29 33 25 23 22 19 21 Slowest Speed 400 | 200 120 190 120 190 400 35 34 27 30 100 34 31 31 285 31 34 109 34 24 22 22 200 Overloaded Moves 228 | . . . . . . . . . . . . . . . . . 155 73 . . . . Propulsion Burnouts . | . . . . . . . . . . . . . . . . . . . . . . . Robots Hopped 50 | . . . . . . 2 5 . . 5 3 . . . . 4 4 7 8 7 . 5 Potential Cave-ins 10 | . . . . . . . 1 . . . . 2 . . 3 . 2 . 2 . . . Cave-ins Triggered . | . . . . . . . . . . . . . . . . . . . . . . . Teleports 3 | . . . . . . . . . . . . . . . . . . . 3 . . . Exploration Rate (%) 49 | 4 37 86 83 73 49 13 78 47 93 41 32 58 60 63 53 13 92 23 78 24 13 31 Regions Visited 22 Branch Regions 14 Pre-discovered Areas 11 | . . 1 . 1 . . . . 3 1 . 2 . 3 . . . . . . . . Known Exits Taken 18 | . 1 . . . 1 1 1 1 1 1 1 1 1 1 1 1 1 1 1 1 1 . Unknown Exits Taken 4 | 1 . 1 1 1 . . . . . . . . . . . . . . . . . . Scrap Searched 13 | . . 1 . . . . . . 5 . . 3 1 . 3 . . . . . . . Spaces Dug 172 | . . . . . 2 1 8 . . 6 1 44 1 . 72 2 19 3 11 2 . . Terrain Destroyed 1257 | . . . . 20 32 1 8 . . 6 2 44 1 . 128 2 21 15 975 2 . . Melee 30 | . . . . . 2 1 8 . . 6 1 1 1 . 2 2 6 . . . . . Projectile 32 | . . . . . . . . . . . . . . . . . 14 4 12 2 . . AOE 1195 | . . . . 20 30 . . . . . 1 43 . . 126 . 1 11 963 . . . Terrain Rammed . | . . . . . . . . . . . . . . . . . . . . . . . Walls Destroyed . | . . . . . . . . . . . . . . . . . . . . . . . Machines Disabled . | . . . . . . . . . . . . . . . . . . . . . . . Actions | -11 -10 -10 -10 -9 -8 -7 -7 -7 -7 -5 -4 -4 -4 -4 -3 -3 -3 -2 -2 -2 -1 -1 --------- Run | Yrd Mat Min Exi Min Mat Fac Sto Rec Scr Fac Fac Upp Upp Zhi Pro Res Tes Res Qua Frg Acc Com Total 15752 | 56 163 429 321 372 822 550 848 813 1996 1260 1334 572 460 195 398 481 1184 632 1014 573 601 678 Wait 1767 | . 5 14 . 5 108 29 206 460 162 43 237 . . . 12 87 116 95 46 39 61 42 Move 13024 | 42 144 381 321 357 568 494 533 351 1820 1133 1050 561 456 164 365 377 954 502 854 515 503 579 Hop 43 | . . . . . . 2 3 . . 5 3 . . . . 3 4 6 6 6 . 5 Pick Up 169 | 8 2 12 . . 21 6 17 . 4 12 8 . . 7 3 4 22 6 22 1 11 3 Fast Attach 42 | . . . . . 2 5 1 . . 2 3 2 . 5 . . 4 4 5 . 3 6 Attach 100 | 6 1 1 . . 17 4 3 . . 8 4 1 . 3 3 2 13 5 20 2 5 2 Detach 16 | . . . . . 1 1 . . . 1 1 1 . . 1 . 4 . 4 . . 2 Swap 97 | . 1 5 . 6 17 . 15 . 5 11 6 . . 4 1 1 10 6 6 . 3 . Drop 138 | . . 4 . . 14 4 19 . 5 14 9 2 . 12 3 1 17 1 24 . 2 7 Fire 282 | . 10 12 . 4 70 4 43 2 . 24 6 2 . . 8 . 24 7 27 4 13 22 Melee 57 | . . . . . 3 1 8 . . 7 7 3 4 . 2 6 16 . . . . . Ram 1 | . . . . . 1 . . . . . . . . . . . . . . . . . Kick . | . . . . . . . . . . . . . . . . . . . . . . . Crush . | . . . . . . . . . . . . . . . . . . . . . . . Escape Stasis 16 | . . . . . . . . . . . . . . . . . . . . 6 . 10 Rewire . | . . . . . . . . . . . . . . . . . . . . . . . Trap . | . . . . . . . . . . . . . . . . . . . . . . . Miscellaneous . | . . . . . . . . . . . . . . . . . . . . . . . Route ------- -11/Scrapyard -10/Materials (discovered 2 exits: [*Mat] / *Min) -10/Mines (discovered 2 exits: [*Mat] / [*Exi]) -10/Exiles -9/Mines -8/Materials -7/Factory (discovered 5 exits: Fac x4 / *Sto) -7/Storage -7/Recycling (discovered 2 exits: *Fac / *Scr) -7/Scraptown (discovered 2 exits: *Fac x2) -5/Factory (discovered 3 exits: *Fac x2 / Upp) -4/Factory (discovered 5 exits: Res x2 / *Upp x2 / Arm) -4/Upper Caves -4/Upper Caves -4/Zhirov -3/Proximity Caves -3/Research (discovered 5 exits: Res x3 / *Tes x2) -3/Testing -2/Research (discovered 2 exits: *Acc / *Qua) -2/Quarantine (discovered 3 exits: Acc / *Sec / *Frg) -2/Protoforge -1/Access (discovered 2 exits: Sur / *Com) -1/Command (discovered 2 exits: *Sur x2) Tau Ceti IV Orbit History --------- Turn | Location | Event 45 | -11/Scrapyard | Discovered new exit (range 14) 77 | -11/Scrapyard | Entered Materials 221 | -10/Materials | Identified exit to Mines 241 | -10/Materials | Discovered new exit (range 11) 290 | -10/Materials | Entered Mines 312 | -10/Mines | Build established: Mutant 512 | -10/Mines | Learned Materials emergency access door positions 512 | -10/Mines | Discovered new exit (range 9) 803 | -10/Mines | Build established: Scavenger-Mutant 809 | -10/Mines | Learned location of Zion (-7) 822 | -10/Mines | Deemed a non-threat by the Exiles lab entrance 822 | -10/Mines | Discovered new exit (range 5) 827 | -10/Mines | Entered Exiles 856 | -10/Exiles | Met 8R-AWN 878 | -10/Exiles | Met EX-HEX 909 | -10/Exiles | Met EX-BIN 1001 | -10/Exiles | Met EX-DEC 1041 | -10/Exiles | Visited The Gauntlet 1198 | -10/Exiles | Discovered new exit (range 12) 1213 | -10/Exiles | Entered Mines 1302 | -9/Mines | Discovered new exit (range 6) 1673 | -9/Mines | Entered Materials 1673 | -8/Materials | Evolved 4 slots: Propulsion x2, Utility x2 2493 | -8/Materials | Lost 8 parts (1p3n2u2w) 2718 | -8/Materials | Build established: Mutant 2757 | -8/Materials | Core integrity fell below 50% 2783 | -8/Materials | Core integrity fell below 20% 2786 | -8/Materials | Lost 3 parts (3n) 2796 | -8/Materials | Discovered new exit (range 9) 2801 | -8/Materials | Identified exit to Factory 2802 | -8/Materials | Entered Factory 2802 | -7/Factory | Evolved 2 slots: Utility x2 2969 | -7/Factory | Repaired Lgt. Ion Engine 2989 | -7/Factory | Identified exit to Factory 3028 | -7/Factory | Discovered new exit (range 12) 3032 | -7/Factory | Identified exit to Storage 3032 | -7/Factory | Entered Storage 3062 | -7/Storage | Met 01-MTF 3204 | -7/Storage | Build established: Scout 3455 | -7/Storage | Assisted by bots powering up and referring to "LRC-V3" 3508 | -7/Storage | Allies destroyed 01-MTF 3547 | -7/Storage | Used back door to open Recycling access 3547 | -7/Storage | Discovered new exit (range 5) 3548 | -7/Storage | Identified exit to Recycling 3586 | -7/Storage | Entered Recycling 3586 | -7/Recycling | Accompanied by 7 allies 3664 | -7/Recycling | Discovered new exit (range 5) 3665 | -7/Recycling | Identified exit to Factory 3671 | -7/Recycling | Scanned before Scraplab entrance 3677 | -7/Recycling | Entered Scraplab 3679 | -7/Recycling | Discovered new exit (range 3) 3679 | -7/Recycling | Identified exit to Scraptown 3738 | -7/Recycling | Build established: Commander-Sprinter 4147 | -7/Recycling | Entered Scraptown 4147 | -7/Scraptown | Accompanied by 7 allies 4196 | -7/Scraptown | Discovered exit to Factory (range 11) 4217 | -7/Scraptown | Visited IN-MT5's Study 4226 | -7/Scraptown | Visited TADAMA 4290 | -7/Scraptown | Visited Comm Corps 4299 | -7/Scraptown | Visited The Evicted 4341 | -7/Scraptown | Visited Junk Repository 4348 | -7/Scraptown | Visited Shadow of the Wyrm 4355 | -7/Scraptown | Visited UFD Registry 4355 | -7/Scraptown | Registered with UFD as "Smoothtalker" 4366 | -7/Scraptown | Visited Cartography Club 4398 | -7/Scraptown | Learned location of Recycling (-7) 4398 | -7/Scraptown | Learned location of Hub_04(d) (-6) 4398 | -7/Scraptown | Learned 8 Materials zone layouts 4398 | -7/Scraptown | Learned 12 Materials zone layouts 4398 | -7/Scraptown | Learned 8 Factory zone layouts 4398 | -7/Scraptown | Learned 8 Research zone layouts 4398 | -7/Scraptown | Learned 16 Research zone layouts 4398 | -7/Scraptown | Learned 12 Research zone layouts 4398 | -7/Scraptown | Learned 20 Lower Caves zone layouts 4398 | -7/Scraptown | Learned 24 Upper Caves zone layouts 4398 | -7/Scraptown | Learned 8 Proximity Caves zone layouts 4398 | -7/Scraptown | Learned 16 Proximity Caves zone layouts 4398 | -7/Scraptown | Learned location of 1 exit from Research 4398 | -7/Scraptown | Learned location of 2 exits from Research 4405 | -7/Scraptown | Found Deep Structural Scanner 4418 | -7/Scraptown | Visited Chapter 10 4426 | -7/Scraptown | Visited Botcube Research 4435 | -7/Scraptown | Discovered exit to Factory (range 12) 4458 | -7/Scraptown | Visited Curators Association 4466 | -7/Scraptown | Visited Infowarlord's Domain 4469 | -7/Scraptown | Found Spectral Analyzer 4476 | -7/Scraptown | Visited Scrap Suit Storage 4484 | -7/Scraptown | Visited DA-N13 Charitable Foundation 4485 | -7/Scraptown | Found DCF Scrap (30 items) 4559 | -7/Scraptown | Visited A0-MCA Data Center 4560 | -7/Scraptown | Given a B+ rating by A0-MCA 4567 | -7/Scraptown | Visited Analyses Database 4573 | -7/Scraptown | Visited LU-1G1's Boring Crew 4722 | -7/Scraptown | Met Optimus 4722 | -7/Scraptown | Accepted into 0bPrime 4823 | -7/Scraptown | Entered Factory 4823 | -5/Factory | Accompanied by 7 allies 4823 | -5/Factory | Evolved 4 slots: Power x1, Propulsion x1, Utility x2 4824 | -5/Factory | Identified exit to Upper Caves 4879 | -5/Factory | Garrison activated, responded to threat 4956 | -5/Factory | Lost 5 allies 4970 | -5/Factory | Loaded intel: 8 recycling unit locations 5031 | -5/Factory | Learned location of Protoforge (-2) 5071 | -5/Factory | Spotted B-75 Beast 5211 | -5/Factory | Discovered new exit (range 13) 5262 | -5/Factory | Discovered new exit (range 13) 5266 | -5/Factory | Identified exit to Factory 5356 | -5/Factory | Entered another Factory area 5356 | -4/Factory | Evolved 2 slots: Utility x2 5357 | -4/Factory | Identified exit to Research 5430 | -4/Factory | Repaired Nuclear Pulse Array 5512 | -4/Factory | Repaired Broken Field Propulsion Drive 5569 | -4/Factory | Identified exit to Upper Caves 5569 | -4/Factory | Identified exit to Armory 5811 | -4/Factory | Loaded intel: 8 recycling unit locations 5999 | -4/Factory | Build established: Hacker-Ninja 6007 | -4/Factory | Entered Upper Caves 6008 | -4/Upper Caves | Identified exit to Upper Caves 6011 | -4/Upper Caves | Learned 4 Research zone layouts 6109 | -4/Upper Caves | Spotted B-86 Titan 6110 | -4/Upper Caves | Learned Research terminal intel 6166 | -4/Upper Caves | Learned Research trap positions 6166 | -4/Upper Caves | Learned Extension emergency access door positions 6166 | -4/Upper Caves | Learned Factory stockpile data 6166 | -4/Upper Caves | Learned Extension garrison access intel 6171 | -4/Upper Caves | Attracted the attention of an 0b10 base 6200 | -4/Upper Caves | Entered another Upper Caves area 6245 | -4/Upper Caves | Learned Research garrison access intel 6304 | -4/Upper Caves | Discovered new exit (range 8) 6306 | -4/Upper Caves | Identified exit to Zhirov 6354 | -4/Upper Caves | Entered Zhirov 6354 | -4/Zhirov | Discovered new exit (range 3) 6355 | -4/Zhirov | Identified exit to Proximity Caves 6360 | -4/Zhirov | Met Zhirov 6368 | -4/Zhirov | Learned location of Quarantine (-2) 6368 | -4/Zhirov | Learned location of Testing (-3) 6368 | -4/Zhirov | Learned location of Command (-1) 6373 | -4/Zhirov | Zhirov requested help retrieving the SGEMP Prototype 6380 | -4/Zhirov | Found Alien Artifact 6381 | -4/Zhirov | Identified Integrated Reactor 6381 | -4/Zhirov | Installed Integrated Reactor, increased core energy generation (+10) 6391 | -4/Zhirov | Found Alien Artifact 6526 | -4/Zhirov | Entered Proximity Caves 6560 | -3/Proximity Caves | Learned location of 2 exits from Upper Caves 6560 | -3/Proximity Caves | Learned Armory emergency access door positions 6654 | -3/Proximity Caves | Spotted B-86 Titan 6678 | -3/Proximity Caves | Entered Research 6678 | -3/Research | Evolved 2 slots: Propulsion x1, Utility x1 6679 | -3/Research | Identified exit to Testing 6680 | -3/Research | Identified exit to Research 6682 | -3/Research | Loaded intel: 81 trap records 6683 | -3/Research | Loaded intel: 21 terminal locations 6684 | -3/Research | Loaded intel: 4 garrison access locations 6903 | -3/Research | Entered Testing 6933 | -3/Testing | Lost 4 parts (3n1u) 6939 | -3/Testing | Found Prototype Energy Cannon 6940 | -3/Testing | Identified Null Cannon 6953 | -3/Testing | Protovariant out of control (PY-19SAQY59L2) 6953 | -3/Testing | Unleashed a protovariant (PY-19SAQY59L2) 7081 | -3/Testing | Found Prototype Energy Cannon 7082 | -3/Testing | Identified Potential Cannon 7121 | -3/Testing | Found Prototype Energy Gun 7122 | -3/Testing | Identified Tachyon Dispersion Ray 7191 | -3/Testing | Discovered exit to Research (range 9) 7326 | -3/Testing | Spotted Striker 7326 | -3/Testing | Spotted Striker 7332 | -3/Testing | Found Prototype Energy Gun 7333 | -3/Testing | Identified Warp Gun 7359 | -3/Testing | Spotted Alpha 7 7373 | -3/Testing | Build established: Hacker-Mutant 7452 | -3/Testing | Stole the SGEMP Prototype 7503 | -3/Testing | Entered Research 7503 | -2/Research | Evolved 2 slots: Utility x2 7612 | -2/Research | Repaired Imp. Medium Armor Plating 7642 | -2/Research | Repaired Field Propulsion Drive 7667 | -2/Research | Loaded intel: 5 recycling unit locations 7755 | -2/Research | Discovered new exit (range 14) 7772 | -2/Research | Discovered new exit (range 7) 7773 | -2/Research | Identified exit to Quarantine 7775 | -2/Research | Entered Quarantine 7801 | -2/Quarantine | Found Alien Artifact 7803 | -2/Quarantine | Identified Phase Armor 7837 | -2/Quarantine | Found Alien Artifact 7838 | -2/Quarantine | Identified Transdimensional Reconstructor 7838 | -2/Quarantine | Warped through subspace 7867 | -2/Quarantine | Found Alien Artifact 7867 | -2/Quarantine | Identified Hpw. Transdimensional Reconstructor 7867 | -2/Quarantine | Warped through subspace 7892 | -2/Quarantine | Found Alien Artifact 7893 | -2/Quarantine | Identified Dimensional Node Initializer 7893 | -2/Quarantine | Initialized slip node 7897 | -2/Quarantine | Found Transdimensional Reconstructor 7930 | -2/Quarantine | Found Alien Impact Weapon 7939 | -2/Quarantine | Identified Core Stripper 7947 | -2/Quarantine | Discovered new exit (range 24) 8068 | -2/Quarantine | Spotted Alpha 7 8075 | -2/Quarantine | Found Alien Launcher 8076 | -2/Quarantine | Identified Sigix Terminator 8092 | -2/Quarantine | Met incapacitated Sigix Warrior 8092 | -2/Quarantine | Lockdown squad dispatched 8099 | -2/Quarantine | Found Sigix Containment Pod 8108 | -2/Quarantine | Warped through subspace to slip node 8123 | -2/Quarantine | Spotted Fortress 8125 | -2/Quarantine | Fired Sigix Terminator 8146 | -2/Quarantine | Discovered new exit (range 6) 8146 | -2/Quarantine | Discovered new exit (range 7) 8147 | -2/Quarantine | Identified exit to Section 7 8147 | -2/Quarantine | Identified exit to Protoforge 8148 | -2/Quarantine | Entered Protoforge 8154 | -2/Protoforge | Spotted B-90 Cyclops 8165 | -2/Protoforge | Lost 6 parts (2p4u) 8193 | -2/Protoforge | Repaired Impulse Thruster Array 8222 | -2/Protoforge | Spotted Hotshot 8222 | -2/Protoforge | Spotted Hotshot 8244 | -2/Protoforge | Spotted Hotshot 8244 | -2/Protoforge | Spotted Hotshot 8248 | -2/Protoforge | Spotted Hotshot 8259 | -2/Protoforge | Spotted Hotshot 8280 | -2/Protoforge | Identified exit to Access 8309 | -2/Protoforge | Spotted Hotshot 8319 | -2/Protoforge | Superfortress began startup sequence 8321 | -2/Protoforge | Entered Access 8321 | -1/Access | Evolved 2 slots: Propulsion x1, Utility x1 8322 | -1/Access | Delivered the SGEMP Prototype to Zhirov 8322 | -1/Access | Zhirov transferred Access data 8323 | -1/Access | Loaded intel: 115 machine locations 8323 | -1/Access | Loaded intel: 109 trap records 8323 | -1/Access | Identified exit to Surface 8323 | -1/Access | Discovered exit to Surface (range 212) 8323 | -1/Access | Identified exit to Command 8323 | -1/Access | Discovered exit to Command (range 108) 8361 | -1/Access | Loaded intel: 4 recycling unit locations 8414 | -1/Access | Found Exp. Thermal Shield 8503 | -1/Access | Build established: Hacker-Sprinter 8531 | -1/Access | Entered Command 8552 | -1/Command | Spotted B-99 Colossus 8568 | -1/Command | Disengaged cave seal 8728 | -1/Command | Lost 4 parts (3n1u) 8739 | -1/Command | Spotted Executioner 8739 | -1/Command | Spotted Executioner 8739 | -1/Command | Spotted Executioner 8739 | -1/Command | Spotted Executioner 8739 | -1/Command | Spotted Striker 8739 | -1/Command | Spotted Striker 8739 | -1/Command | Spotted Alpha 7 8739 | -1/Command | Spotted Alpha 7 8755 | -1/Command | Spotted B-99 Colossus 8763 | -1/Command | Spotted B-99 Colossus 8770 | *** | Destroyed 0b10! Last Messages --------------- area. 08768_ Field strength at 64. 08768_ Striker system corruption misinterpreted. 08768_ Striker triggered Stasis Trap. 08768_ A bubble of rippling energy engulfs the area. 08768_ Field strength at 92. 08768_ Field strength at 28. 08768_ Slug penetrates Wall. 08768_ Field strength at 84. 08769_ Penetrated by Slug. 08769_ Field Propulsion Array destroyed. 08769_ Stasis field depleted. 08769_ Slug penetrates Executioner. 08769_ Slug penetrates Wall. 08769_ Field strength at 76. 08770_ Field strength at 68. [Achievement: 20k Club] [Achievement: 30k Club] [Achievement: Payload Armed] Map ----- +----------------------------------------------------+ | ??????????????# *= ![ = # | | ??????????????# % [!%=% + "" | | ??????????????# """" "" =%=%[ # "" | | ##+############ """" "" = " # "" | | """" """ " + " | | """" """" ############ | | %= ############### | | *% | | ############+## | | ##### ##########+#+############## ## | | ????# #????# #?????# ## | | ????# #????# #?????# ## | | ????# #????# #?????# # | | ????# #????#* #?????+ # | | ????# #????# #?????# # | | ????# #????# #?????# ## | | ????# #????################?????###########+## | | ????# #????????????????????????????????# # | | ????# #????????##############??????????# # | | ##### #????????# BB##?????????#! # | | ## #????????# BB;########??# + | | ## #????????# ^ ; ; ; ; #### # | | |## #????????# %^ K % ""####"# | | !*+% #????????# % K ^ %!" | | =|########????????# "" ^ ^^ [|" | | #???????????????# @" ^ ^^^ " | | #??????########?# E " | | #??????# #?# ^ """#+### | | #??????# [ #?# ; # # # ""## ? | | #??????# #?# BB;#######"### ! | | #??????# #?# %BB##???????#?# " | | ########### ""#?##############??????????# "" | | # ""#?????????????????????????# "" | | + ""#????###########??????????# " | | # T#????# !!! #??????????# | | # ""#????# !!! #??????????# | | # ""#????# !!! #??????????# | | # ""#????# #??????????####### | | # #????# !#????????????????? | | ### # #????#* #????????????????? | | ??# ############# #????????????????? | | ??# # # #????????????????? | | ??# # !!! #####+###################### | | ??# # !! #??# | | ??# # ] !! #??# | | ??# # #??# ################# | | ??# # ] #??# #???????????????# | | ??# # #?## ##??????????????# | | ??# ####+####+##### #??????????????# | | ??# #?# "T #??????????????# | +----------------------------------------------------+ Best States ------------- Heat Dissipation 60 Energy Generation 67 Energy Capacity 620 Matter Stores 300 Matter Capacity 800 Sight Range 24 Robot Scan Range 15 Terrain Scan Density 10 ECM Strength 1 Jamming Range 16 Cloak Strength 2 Power Amplification 30 Additional Mass Support 16 Armor Coverage 600 Resistance: TH 30 Evasion (%) 66 Melee Accuracy 5 Offensive Hacking 48 Defensive Hacking 26 Item Schematics ----------------- Assault Drone Bay | -4/Zhirov | Free Exp. Heat Sink | -4/Zhirov | Free Exp. Optical Array | -4/Zhirov | Free Imp. Arc Thrower | -4/Zhirov | Free Imp. Medium Armor Plating | -3/Testing | Scanalyzed Lgt. Antimatter Reactor | -3/Testing | Scanalyzed Tactical Quantum Warhead | -3/Testing | Archive Adv. Matter Compressor | -3/Testing | Archive Cld. Phase Gun | -3/Testing | Archive Hvy. Wave Gun | -3/Testing | Archive Com. Mass Driver | -3/Testing | Archive Imp. KE Penetrator | -3/Testing | Archive Adv. Thermal Defense Suite | -3/Testing | Archive Exp. Terrain Scan Processor | -3/Testing | Archive Exp. Thermal Shield | -3/Testing | Archive Exp. System Shield | -3/Testing | Archive Centrium Medium Armor Plating | -3/Testing | Archive Adv. EM Shield | -2/Quarantine | Archive Electron Diverter | -2/Quarantine | Archive Robot Schematics ------------------ K-01 Serf | -3/Testing | Archive A-27 Freighter | -2/Quarantine | Archive A-15 Conveyor | -2/Quarantine | Archive Fabricated ------------ Nothing Repaired ---------- Lgt. Ion Engine | 65% | -7/Factory Nuclear Pulse Array | 22% | -4/Factory Field Propulsion Drive | 99% | -4/Factory | Broken Imp. Medium Armor Plating | 6% | -2/Research Field Propulsion Drive | 3% | -2/Research Impulse Thruster Array | 5% | -2/Protoforge Alien Tech Used ----------------- Integrated Reactor Phase Armor Transdimensional Reconstructor High-powered Transdimensional Reconstructor Dimensional Node Initializer Core Stripper Sigix Terminator Achievements -------------- 20k Club 30k Club Payload Armed Rampage Remodeling Special Delivery Challenges ------------ None Game ------ Seed PowerMicrodissipatorMapper Manual? 0 Play Time 03:19:23 Cumulative 64.5 hours Start 2025.08.20 @ 17:10:37 End 2025.08.20 @ 20:34:37 Sessions 1 Manual Loads 0 Difficulty Rogue Special Mode None Game No. 47 Rogue 47 Adventurer 0 Explorer 0 Win Type 3 Total 2 Types 1/0/0/1/0/0/0/0/0/0 Lore% 57 Gallery% 48 Achievement% 41 Wizard Run 0 Options --------- Layout 1 ASCII 0 Keyboard 0 Movement Mouse Keybinds 0 Fullscreen 1 Font 24/Smallcaps Map View 50x35 Zoom Use 0% Tactical HUD 1 Map Filters NONE Filters NONE Steam 1 RUN: fbd4e954-9dbd-490d-b10a-09fc87533512